[Event "Paracin Open 2022"]
[Site "Paracin"]
[Date "2022.07.13"]
[Round "6.7"]
[White "Samant Aditya S"]
[Black "Koustav Chatterjee"]
[Result "1/2-1/2"]
[ECO "C70"]
[WhiteElo "2431"]
[BlackElo "2485"]
[Annotator "ChessBase"]
[PlyCount "112"]
[EventDate "2022.07.08"]
[EventCountry "SRB"]
[SourceTitle "playchess.com"]
[Source "ChessBase"]
[SourceQuality "1"]
[TimeControl "5400+30"]

1. e4 {[%emt 0:00:03]} e5 {[%emt 0:00:05]} 2. Nf3 {[%emt 0:00:05]} Nc6 {[%emt 0:00:03]} 3. Bb5 {[%emt 0:00:07]} a6 {[%emt 0:02:59]} 4. Ba4 {[%emt 0:00:05]} Bc5 {[%emt 0:03:11]} 5. c3 {[%emt 0:01:47]} Nge7 {[%emt 0:00:07]} 6. d4 {[%emt 0:02:24]} exd4 {[%emt 0:00:06]} 7. cxd4 {[%emt 0:00:09]} Bb4+ {[%emt 0:00:03]} 8. Nc3 {[%emt 0:09:10]} d5 {[%emt 0:04:57]} 9. exd5 {[%emt 0:05:00]} Qxd5 {[%emt 0:29:15]} 10. O-O {[%emt 0:00:59]} Bxc3 {[%emt 0:00:05]} 11. bxc3 {[%emt 0:02:32]} Bg4 {[%emt 0:02:41]} 12. Re1 {[%emt 0:35:07]} O-O-O {[%emt 0:10:35]} 13. Bb3 {[%emt 0:09:02]} Bxf3 {[%emt 0:04:42]} 14. Qxf3 {[%emt 0:02:20]} Qxf3 {[%emt 0:00:06]} 15. gxf3 {[%emt 0:00:02]} Nd5 {[%emt 0:01:00]} 16. Bd2 {[%emt 0:01:20]} b5 {[%emt 0:05:23]} 17. a4 {[%emt 0:11:45]} b4 {[%emt 0:05:34]} 18. cxb4 {[%emt 0:05:42]} Ndxb4 {[%emt 0:16:14]} 19. Bxb4 {[%emt 0:06:40]} Nxb4 {[%emt 0:00:02]} 20. Bxf7 {[%emt 0:00:07]} Rxd4 {[%emt 0:00:40]} 21. Re7 {[%emt 0:00:15]} Kd8 {[%emt 0:01:21]} 22. Rae1 {[%emt 0:03:12]} Nd3 {[%emt 0:07:03]} 23. R1e3 {[%emt 0:03:20]} Rxa4 {[%emt 0:01:28]} 24. Be8 {[%emt 0:00:43]} Ra1+ {[%emt 0:02:39]} 25. Kg2 {[%emt 0:00:01]} Nb4 {[%emt 0:01:53]} 26. Rd7+ {[%emt 0:00:35]} Kc8 {[%emt 0:00:02]} 27. Rxg7 {[%emt 0:00:50]} Kb7 {[%emt 0:00:46]} 28. Bf7 {[%emt 0:00:30]} Rd1 {[%emt 0:00:48]} 29. Bg8 {[%emt 0:00:27]} Rd6 {[%emt 0:00:33]} 30. Bxh7 {[%emt 0:00:33]} Kb6 {[%emt 0:00:05]} 31. Be4 {[%emt 0:00:31]} a5 {[%emt 0:00:56]} 32. Rc3 {[%emt 0:00:24]} c6 {[%emt 0:00:12]} 33. Rg5 {[%emt 0:00:39]} Ra8 {[%emt 0:00:47]} 34. Rc4 {[%emt 0:00:30]} Nd5 {[%emt 0:00:21]} 35. Bc2 {[%emt 0:00:30]} Kb5 {[%emt 0:00:29]} 36. Ra4 {[%emt 0:00:30]} c5 {[%emt 0:00:11]} 37. Ra1 {[%emt 0:00:19]} a4 {[%emt 0:01:01]} 38. Bd3+ {[%emt 0:00:32]} Kb4 {[%emt 0:00:33]} 39. Rg4+ {[%emt 0:00:33]} Kb3 {[%emt 0:00:06]} 40. Bc4+ {[%emt 0:00:28]} Kb2 {[%emt 0:00:06]} 41. Ra2+ {[%emt 0:00:06]} Kc3 {[%emt 0:00:27]} 42. Ra3+ {[%emt 0:00:22]} Kb2 {[%emt 0:00:14]} 43. Ra2+ {[%emt 0:00:28]} Kc3 {[%emt 0:00:10]} 44. Ra3+ {[%emt 0:00:05]} Kb2 {[%emt 0:00:05]} 45. Ra2+ {[%emt 0:00:05]} Kc1 {[%emt 0:01:40]} 46. Bxd5 {[%emt 0:01:51]} Rxd5 {[%emt 0:00:01]} 47. Raxa4 {[%emt 0:00:32]} Rxa4 {[%emt 0:00:02]} 48. Rxa4 {[%emt 0:00:01]} Rd4 {[%emt 0:00:12]} 49. Ra7 {[%emt 0:01:03]} c4 {[%emt 0:00:04]} 50. Rc7 {[%emt 0:00:15]} Kd2 {[%emt 0:00:08]} 51. Kg3 {[%emt 0:00:32]} c3 {[%emt 0:00:04]} 52. h4 {[%emt 0:00:19]} c2 {[%emt 0:00:33]} 53. h5 {[%emt 0:00:14]} c1=Q {[%emt 0:00:35]} 54. Rxc1 {[%emt 0:00:03]} Kxc1 {[%emt 0:00:04]} 55. f4 {[%emt 0:01:01]} Kd2 {[%emt 0:00:47]} 56. Kg4 {[%emt 0:00:17]} Kd3 {[%emt 0:00:26]} 1/2-1/2

[Event "Paracin Open 2022"]
[Site "Paracin"]
[Date "2022.07.13"]
[Round "6.8"]
[White "Nitish Belurkar"]
[Black "Harshavardhan G B"]
[Result "1/2-1/2"]
[ECO "C89"]
[WhiteElo "2460"]
[BlackElo "2397"]
[Annotator "ChessBase"]
[PlyCount "63"]
[EventDate "2022.07.08"]
[EventCountry "SRB"]
[SourceTitle "playchess.com"]
[Source "ChessBase"]
[SourceQuality "1"]
[TimeControl "5400+30"]

1. e4 {[%emt 0:00:04]} e5 {[%emt 0:00:46]} 2. Nf3 {[%emt 0:00:07]} Nc6 {[%emt 0:00:52]} 3. Bb5 {[%emt 0:00:06]} a6 {[%emt 0:00:06]} 4. Ba4 {[%emt 0:00:02]} Nf6 {[%emt 0:00:07]} 5. O-O {[%emt 0:00:19]} Be7 {[%emt 0:00:13]} 6. Re1 {[%emt 0:00:53]} b5 {[%emt 0:00:07]} 7. Bb3 {[%emt 0:00:06]} O-O {[%emt 0:00:05]} 8. c3 {[%emt 0:04:09]} d5 {[%emt 0:00:08]} 9. exd5 {[%emt 0:03:23]} Nxd5 {[%emt 0:01:50]} 10. Nxe5 {[%emt 0:03:57]} Nxe5 {[%emt 0:00:17]} 11. Rxe5 {[%emt 0:00:06]} c6 {[%emt 0:00:08]} 12. d3 {[%emt 0:01:25]} Bd6 {[%emt 0:00:24]} 13. Re1 {[%emt 0:00:06]} Bf5 {[%emt 0:00:09]} 14. Nd2 {[%emt 0:18:18]} Nf4 {[%emt 0:10:54]} 15. Ne4 {[%emt 0:09:43]} Nxd3 {[%emt 0:03:30]} 16. Bg5 {[%emt 0:03:36]} Qd7 {[%emt 0:01:10]} 17. Re3 {[%emt 0:19:46]} Bxe4 {[%emt 0:00:26]} 18. Rxe4 {[%emt 0:00:01]} Rae8 {[%emt 0:02:09]} 19. Rxe8 {[%emt 0:02:06]} Rxe8 {[%emt 0:00:06]} 20. Qd2 {[%emt 0:02:29]} c5 {[%emt 0:14:50]} 21. g3 {[%emt 0:15:58]} c4 {[%emt 0:01:27]} 22. Bc2 {[%emt 0:03:37]} Bc5 {[%emt 0:01:27]} 23. Bxd3 {[%emt 0:02:57]} cxd3 {[%emt 0:00:53]} 24. Re1 {[%emt 0:07:30]} Rxe1+ {[%emt 0:01:02]} 25. Qxe1 {[%emt 0:00:01]} h6 {[%emt 0:00:23]} 26. Bd2 {[%emt 0:00:57]} Qc6 {[%emt 0:01:20]} 27. Qe5 {[%emt 0:00:40]} Ba7 {[%emt 0:01:22]} 28. Qf5 {[%emt 0:00:17]} Qd6 {[%emt 0:08:07]} 29. Qc8+ {[%emt 0:00:01]} Kh7 {[%emt 0:00:15]} 30. Qf5+ {[%emt 0:00:04]} Kg8 {[%emt 0:02:47]} 31. Qc8+ {[%emt 0:00:01]} Kh7 {[%emt 0:00:10]} 32. Qf5+ {[%emt 0:00:02]} 1/2-1/2

[Event "Paracin Open 2022"]
[Site "Paracin"]
[Date "2022.07.13"]
[Round "6.9"]
[White "Santiago, Yago De Moura"]
[Black "Erdogmus, Yagiz Kaan"]
[Result "1/2-1/2"]
[ECO "E16"]
[WhiteElo "2513"]
[BlackElo "2373"]
[Annotator "ChessBase"]
[PlyCount "183"]
[EventDate "2022.07.08"]
[EventCountry "SRB"]
[SourceTitle "playchess.com"]
[Source "ChessBase"]
[SourceQuality "1"]
[TimeControl "5400+30"]

1. d4 {[%emt 0:00:10]} d5 {[%emt 0:00:35]} 2. c4 {[%emt 0:00:18]} c6 {[%emt 0:00:24]} 3. Nf3 {[%emt 0:01:32]} Nf6 {[%emt 0:01:23]} 4. Nc3 {[%emt 0:02:53]} e6 {[%emt 0:02:28]} 5. g3 {[%emt 0:01:00]} Be7 {[%emt 0:15:49]} 6. Bg2 {[%emt 0:00:49]} O-O {[%emt 0:00:55]} 7. O-O {[%emt 0:02:16]} b6 {[%emt 0:03:17]} 8. Ne5 {[%emt 0:04:00]} Bb7 {[%emt 0:01:17]} 9. Bf4 {[%emt 0:03:37]} Nbd7 {[%emt 0:13:26]} 10. Rc1 {[%emt 0:17:42]} Nxe5 {[%emt 0:18:23]} 11. dxe5 {[%emt 0:01:53]} Ne8 {[%emt 0:18:34]} 12. h4 {[%emt 0:18:59]} dxc4 {[%emt 0:08:02]} 13. Qc2 {[%emt 0:05:58]} Nc7 {[%emt 0:03:23]} 14. Rfd1 {[%emt 0:01:13]} Qc8 {[%emt 0:04:41]} 15. Ne4 {[%emt 0:01:48]} h6 {[%emt 0:02:44]} 16. Nd6 {[%emt 0:22:02]} Bxd6 {[%emt 0:00:04]} 17. exd6 {[%emt 0:00:07]} Nd5 {[%emt 0:00:27]} 18. Bd2 {[%emt 0:00:09]} c5 {[%emt 0:01:32]} 19. Qxc4 {[%emt 0:05:46]} Nf6 {[%emt 0:00:31]} 20. Bc3 {[%emt 0:01:02]} Nd7 {[%emt 0:01:52]} 21. Qg4 {[%emt 0:00:26]} e5 {[%emt 0:00:32]} 22. Bxe5 {[%emt 0:01:09]} f6 {[%emt 0:00:37]} 23. Qc4+ {[%emt 0:05:20]} Kh8 {[%emt 0:00:05]} 24. Bf4 {[%emt 0:00:47]} Bxg2 {[%emt 0:00:05]} 25. Kxg2 {[%emt 0:00:03]} Re8 {[%emt 0:00:54]} 26. Rc2 {[%emt 0:00:21]} Qc6+ {[%emt 0:00:48]} 27. Qd5 {[%emt 0:00:19]} Qxd5+ {[%emt 0:00:14]} 28. Rxd5 {[%emt 0:00:02]} g5 {[%emt 0:00:07]} 29. hxg5 {[%emt 0:00:36]} hxg5 {[%emt 0:00:02]} 30. Be3 {[%emt 0:00:34]} Re4 {[%emt 0:00:31]} 31. Bc1 {[%emt 0:02:34]} Rae8 {[%emt 0:00:14]} 32. Kf1 {[%emt 0:00:07]} a5 {[%emt 0:01:22]} 33. b3 {[%emt 0:00:37]} a4 {[%emt 0:00:54]} 34. Bb2 {[%emt 0:00:06]} axb3 {[%emt 0:00:40]} 35. axb3 {[%emt 0:00:03]} Kh7 {[%emt 0:00:33]} 36. Bc3 {[%emt 0:00:44]} Kg6 {[%emt 0:00:31]} 37. f3 {[%emt 0:00:40]} R4e6 {[%emt 0:00:30]} 38. g4 {[%emt 0:00:32]} Ra8 {[%emt 0:00:26]} 39. b4 {[%emt 0:01:05]} Ra3 {[%emt 0:00:30]} 40. Kf2 {[%emt 0:00:30]} Kf7 {[%emt 0:00:34]} 41. bxc5 {[%emt 0:00:26]} bxc5 {[%emt 0:00:11]} 42. Bd2 {[%emt 0:00:20]} Ra6 {[%emt 0:00:06]} 43. Be3 {[%emt 0:00:51]} Raxd6 {[%emt 0:01:09]} 44. Rf5 {[%emt 0:00:32]} Kg6 {[%emt 0:00:34]} 45. Bxc5 {[%emt 0:00:27]} Rc6 {[%emt 0:00:29]} 46. Rd5 {[%emt 0:00:26]} Nxc5 {[%emt 0:00:30]} 47. Rdxc5 {[%emt 0:00:05]} Rxc5 {[%emt 0:00:24]} 48. Rxc5 {[%emt 0:00:02]} Ra6 {[%emt 0:00:11]} 49. Rc7 {[%emt 0:01:19]} Ra3 {[%emt 0:01:30]} 50. Re7 {[%emt 0:00:10]} Ra2 {[%emt 0:00:00]} 51. Ke3 {[%emt 0:00:30]} Ra3+ {[%emt 0:00:00]} 52. Kf2 {[%emt 0:00:52]} Ra2 {[%emt 0:00:00]} 53. Rc7 {[%emt 0:00:19]} Ra3 {[%emt 0:00:00]} 54. Rd7 {[%emt 0:00:10]} Ra2 {[%emt 0:00:13]} 55. Rb7 {[%emt 0:00:46]} Ra3 {[%emt 0:00:05]} 56. Rb2 {[%emt 0:00:34]} Ra6 {[%emt 0:00:34]} 57. Rc2 {[%emt 0:00:28]} Ra3 {[%emt 0:00:06]} 58. Rd2 {[%emt 0:00:20]} Ra6 {[%emt 0:00:22]} 59. e3 {[%emt 0:00:19]} Ra3 {[%emt 0:00:16]} 60. Rd7 {[%emt 0:00:46]} Ra2+ {[%emt 0:00:08]} 61. Kg3 {[%emt 0:00:20]} Ra3 {[%emt 0:00:48]} 62. Re7 {[%emt 0:00:09]} Rb3 {[%emt 0:00:16]} 63. Kf2 {[%emt 0:00:14]} Rb2+ {[%emt 0:00:04]} 64. Kf1 {[%emt 0:00:14]} Ra2 {[%emt 0:00:17]} 65. Rd7 {[%emt 0:00:56]} Rb2 {[%emt 0:00:42]} 66. Ke1 {[%emt 0:00:07]} Ra2 {[%emt 0:00:28]} 67. Rd2 {[%emt 0:00:05]} Ra4 {[%emt 0:00:43]} 68. Ke2 {[%emt 0:00:13]} Ra3 {[%emt 0:00:16]} 69. Rd7 {[%emt 0:00:37]} Rb3 {[%emt 0:00:25]} 70. Rc7 {[%emt 0:00:15]} Ra3 {[%emt 0:00:20]} 71. Kd2 {[%emt 0:00:07]} Ra2+ {[%emt 0:01:10]} 72. Kd3 {[%emt 0:00:13]} Ra3+ {[%emt 0:00:20]} 73. Kd4 {[%emt 0:01:15]} Ra2 {[%emt 0:00:57]} 74. Rc4 {[%emt 0:00:23]} Rg2 {[%emt 0:01:03]} 75. Rc3 {[%emt 0:01:06]} Ra2 {[%emt 0:00:13]} 76. e4 {[%emt 0:01:17]} Ra5 {[%emt 0:01:27]} 77. Rc6 {[%emt 0:00:59]} Kg7 {[%emt 0:02:02]} 78. Rc7+ {[%emt 0:00:15]} Kg6 {[%emt 0:00:07]} 79. Rc6 {[%emt 0:00:16]} Kg7 {[%emt 0:00:04]} 80. Rc7+ {[%emt 0:00:05]} Kg6 {[%emt 0:00:03]} 81. Rc5 {[%emt 0:00:06]} Ra3 {[%emt 0:01:04]} 82. Rc3 {[%emt 0:00:43]} Ra5 {[%emt 0:00:13]} 83. Ke3 {[%emt 0:00:33]} Ra4 {[%emt 0:00:18]} 84. Rd3 {[%emt 0:00:24]} Ra5 {[%emt 0:00:36]} 85. f4 {[%emt 0:00:14]} gxf4+ {[%emt 0:00:04]} 86. Kxf4 {[%emt 0:00:04]} Ra1 {[%emt 0:00:11]} 87. Rd4 {[%emt 0:01:52]} Rf1+ {[%emt 0:00:04]} 88. Kg3 {[%emt 0:00:05]} Rg1+ {[%emt 0:00:26]} 89. Kf3 {[%emt 0:00:06]} Rf1+ {[%emt 0:00:26]} 90. Kg2 {[%emt 0:00:07]} Ra1 {[%emt 0:00:07]} 91. Rd5 {[%emt 0:00:44]} Re1 {[%emt 0:00:15]} 92. Kf3 {[%emt 0:00:18]} 1/2-1/2

[Event "Paracin Open 2022"]
[Site "Paracin"]
[Date "2022.07.13"]
[Round "6.10"]
[White "Kushagra Mohan"]
[Black "Petrov, Nikita"]
[Result "1/2-1/2"]
[ECO "B47"]
[WhiteElo "2359"]
[BlackElo "2558"]
[Annotator "ChessBase"]
[PlyCount "277"]
[EventDate "2022.07.08"]
[EventCountry "SRB"]
[SourceTitle "playchess.com"]
[Source "ChessBase"]
[SourceQuality "1"]
[TimeControl "5400+30"]

1. e4 {[%emt 0:00:03]} c5 {[%emt 0:00:14]} 2. Nf3 {[%emt 0:00:04]} Nc6 {[%emt 0:00:15]} 3. d4 {[%emt 0:00:07]} cxd4 {[%emt 0:00:08]} 4. Nxd4 {[%emt 0:00:03]} e6 {[%emt 0:00:36]} 5. Nc3 {[%emt 0:00:05]} Qc7 {[%emt 0:00:22]} 6. f4 {[%emt 0:00:16]} a6 {[%emt 0:01:09]} 7. Be2 {[%emt 0:00:08]} Nxd4 {[%emt 0:01:55]} 8. Qxd4 {[%emt 0:00:08]} b5 {[%emt 0:00:13]} 9. a3 {[%emt 0:03:24]} Bb7 {[%emt 0:00:55]} 10. Be3 {[%emt 0:00:32]} Rc8 {[%emt 0:02:39]} 11. O-O {[%emt 0:02:28]} h5 {[%emt 0:01:18]} 12. h3 {[%emt 0:03:21]} h4 {[%emt 0:00:40]} 13. Bf3 {[%emt 0:03:55]} Nf6 {[%emt 0:06:51]} 14. Rad1 {[%emt 0:08:05]} Bxa3 {[%emt 0:12:35]} 15. Nxb5 {[%emt 0:02:31]} axb5 {[%emt 0:00:07]} 16. bxa3 {[%emt 0:00:02]} O-O {[%emt 0:04:49]} 17. Rd2 {[%emt 0:08:06]} Qa5 {[%emt 0:16:14]} 18. e5 {[%emt 0:15:56]} Nd5 {[%emt 0:08:18]} 19. Bxd5 {[%emt 0:02:55]} Bxd5 {[%emt 0:00:07]} 20. Qb4 {[%emt 0:05:13]} Qxb4 {[%emt 0:06:24]} 21. axb4 {[%emt 0:00:06]} Rc3 {[%emt 0:00:07]} 22. Bd4 {[%emt 0:01:53]} Rg3 {[%emt 0:02:13]} 23. f5 {[%emt 0:07:39]} Rc8 {[%emt 0:03:01]} 24. Rf4 {[%emt 0:02:53]} Rc4 {[%emt 0:02:31]} 25. fxe6 {[%emt 0:02:03]} dxe6 {[%emt 0:02:28]} 26. Rxh4 {[%emt 0:00:55]} Rxb4 {[%emt 0:04:32]} 27. Kh2 {[%emt 0:01:46]} Ra3 {[%emt 0:04:31]} 28. Rf4 {[%emt 0:02:47]} Rc4 {[%emt 0:01:26]} 29. Rdf2 {[%emt 0:13:44]} Ra2 {[%emt 0:01:35]} 30. Be3 {[%emt 0:03:58]} Raxc2 {[%emt 0:08:38]} 31. Rxf7 {[%emt 0:00:24]} Rxf2 {[%emt 0:00:21]} 32. Rxf2 {[%emt 0:00:05]} b4 {[%emt 0:00:26]} 33. Rf4 {[%emt 0:01:55]} Rc3 {[%emt 0:02:37]} 34. Bd4 {[%emt 0:00:31]} Rd3 {[%emt 0:00:32]} 35. Bc5 {[%emt 0:01:17]} b3 {[%emt 0:00:22]} 36. Rf2 {[%emt 0:00:18]} Be4 {[%emt 0:02:16]} 37. Ba3 {[%emt 0:02:22]} Rd5 {[%emt 0:00:42]} 38. Rf4 {[%emt 0:00:46]} Bc2 {[%emt 0:01:16]} 39. Bb2 {[%emt 0:01:21]} Rd2 {[%emt 0:02:08]} 40. Kg3 {[%emt 0:00:42]} Bd1 {[%emt 0:00:26]} 41. Rf2 {[%emt 0:00:25]} Be2 {[%emt 0:00:41]} 42. Bc1 {[%emt 0:02:47]} b2 {[%emt 0:00:33]} 43. Bxd2 {[%emt 0:00:28]} Bd3 {[%emt 0:00:26]} 44. Kh2 {[%emt 0:01:03]} b1=Q {[%emt 0:00:06]} 45. Bf4 {[%emt 0:00:03]} Be4 {[%emt 0:00:26]} 46. Bg3 {[%emt 0:00:05]} Bd5 {[%emt 0:00:32]} 47. Rd2 {[%emt 0:00:05]} Qe4 {[%emt 0:00:16]} 48. Rf2 {[%emt 0:00:04]} Qe3 {[%emt 0:00:07]} 49. Rb2 {[%emt 0:00:22]} Kf7 {[%emt 0:00:53]} 50. Rf2+ {[%emt 0:00:17]} Ke8 {[%emt 0:00:41]} 51. Rb2 {[%emt 0:00:10]} Kd7 {[%emt 0:00:35]} 52. Rf2 {[%emt 0:00:06]} Qe4 {[%emt 0:01:07]} 53. Rd2 {[%emt 0:00:18]} g5 {[%emt 0:00:42]} 54. Rf2 {[%emt 0:00:04]} Kc6 {[%emt 0:00:13]} 55. Rd2 {[%emt 0:00:03]} Kc5 {[%emt 0:00:13]} 56. Rf2 {[%emt 0:00:18]} Kc4 {[%emt 0:00:21]} 57. Rd2 {[%emt 0:00:15]} Qe3 {[%emt 0:00:45]} 58. Rb2 {[%emt 0:00:13]} Be4 {[%emt 0:00:32]} 59. Rf2 {[%emt 0:00:12]} Bd3 {[%emt 0:00:43]} 60. Rf3 {[%emt 0:00:15]} Qe4 {[%emt 0:00:12]} 61. Rf2 {[%emt 0:00:04]} Be2 {[%emt 0:00:36]} 62. Kg1 {[%emt 0:00:15]} Bh5 {[%emt 0:00:53]} 63. Kh2 {[%emt 0:00:04]} Bg6 {[%emt 0:00:09]} 64. Rd2 {[%emt 0:00:06]} Qe3 {[%emt 0:00:14]} 65. Rb2 {[%emt 0:00:20]} Be4 {[%emt 0:00:19]} 66. Ra2 {[%emt 0:00:20]} Kb3 {[%emt 0:00:55]} 67. Rf2 {[%emt 0:00:18]} Qd3 {[%emt 0:00:27]} 68. Rf8 {[%emt 0:00:51]} Bd5 {[%emt 0:01:20]} 69. Rf2 {[%emt 0:00:04]} Qh7 {[%emt 0:00:10]} 70. Rd2 {[%emt 0:00:27]} g4 {[%emt 0:00:30]} 71. h4 {[%emt 0:01:11]} Qe4 {[%emt 0:00:25]} 72. Rf2 {[%emt 0:00:10]} Qe3 {[%emt 0:00:28]} 73. Rf1 {[%emt 0:00:14]} Qd3 {[%emt 0:00:28]} 74. Rf2 {[%emt 0:00:06]} Kc3 {[%emt 0:00:05]} 75. Rf4 {[%emt 0:00:12]} Qe3 {[%emt 0:03:00]} 76. Rf2 {[%emt 0:00:25]} Kd3 {[%emt 0:00:00]} 77. Rb2 {[%emt 0:00:14]} Qd4 {[%emt 0:00:00]} 78. Rf2 {[%emt 0:00:16]} Ke3 {[%emt 0:00:00]} 79. Kg1 {[%emt 0:01:56]} Bc6 {[%emt 0:01:17]} 80. Kh2 {[%emt 0:00:09]} Qe4 {[%emt 0:00:30]} 81. Rb2 {[%emt 0:00:07]} Bd5 {[%emt 0:00:16]} 82. Rf2 {[%emt 0:00:05]} Kd3 {[%emt 0:00:21]} 83. Rb2 {[%emt 0:00:12]} Kc3 {[%emt 0:00:04]} 84. Rf2 {[%emt 0:00:03]} Qe3 {[%emt 0:00:53]} 85. Rf1 {[%emt 0:00:14]} Qd4 {[%emt 0:00:24]} 86. Rf4 {[%emt 0:00:59]} Qd2 {[%emt 0:00:21]} 87. Rf2 {[%emt 0:00:03]} Qd3 {[%emt 0:00:05]} 88. Rf4 {[%emt 0:00:14]} Qd1 {[%emt 0:01:14]} 89. Rf2 {[%emt 0:00:10]} Kd3 {[%emt 0:00:17]} 90. Rb2 {[%emt 0:00:11]} Bc4 {[%emt 0:00:31]} 91. Rf2 {[%emt 0:00:05]} Ke3 {[%emt 0:00:10]} 92. Rb2 {[%emt 0:14:05]} Be2 {[%emt 0:00:22]} 93. Rb4 {[%emt 0:00:00]} Qb1 {[%emt 0:00:21]} 94. Rf4 {[%emt 0:00:00]} Bf3 {[%emt 0:00:25]} 95. gxf3 {[%emt 0:00:00]} Qc2+ {[%emt 0:00:06]} 96. Kg1 {[%emt 0:00:00]} Qd1+ {[%emt 0:00:31]} 97. Kg2 {[%emt 0:00:00]} gxf3+ {[%emt 0:00:18]} 98. Kh3 {[%emt 0:00:00]} Qf1+ {[%emt 0:00:06]} 99. Kg4 {[%emt 0:00:00]} Qd1 {[%emt 0:00:48]} 100. Kh3 {[%emt 0:00:00]} Qf1+ {[%emt 0:01:34]} 101. Kg4 {[%emt 0:00:00]} Qe2 {[%emt 0:00:05]} 102. Kh3 {[%emt 0:00:00]} Qd3 {[%emt 0:01:47]} 103. Rf6 {[%emt 0:00:00]} Qh7 {[%emt 0:00:27]} 104. Rf4 {[%emt 0:00:00]} Qh5 {[%emt 0:00:05]} 105. Rf6 {[%emt 0:00:00]} Ke2 {[%emt 0:00:03]} 106. Rf8 {[%emt 0:00:00]} Kf1 {[%emt 0:00:18]} 107. Rf6 {[%emt 0:00:00]} Kg1 {[%emt 0:00:36]} 108. Rf8 {[%emt 0:00:00]} Kf1 {[%emt 0:00:49]} 109. Rf6 {[%emt 0:00:00]} Ke2 {[%emt 0:00:06]} 110. Rf8 {[%emt 0:00:00]} Qg6 {[%emt 0:00:22]} 111. Rf4 {[%emt 0:00:00]} Qg7 {[%emt 0:01:00]} 112. Rf6 {[%emt 0:00:00]} Qg8 {[%emt 0:00:53]} 113. Rf4 {[%emt 0:00:00]} Qg6 {[%emt 0:00:06]} 114. Rf8 {[%emt 0:00:00]} Qe4 {[%emt 0:00:29]} 115. Rf6 {[%emt 0:00:00]} Qh7 {[%emt 0:01:10]} 116. Rf4 {[%emt 0:00:00]} Qh6 {[%emt 0:00:33]} 117. Rf6 {[%emt 0:00:00]} Qc1 {[%emt 0:00:19]} 118. Rf8 {[%emt 0:00:32]} Qc2 {[%emt 0:00:44]} 119. Rf6 {[%emt 0:00:26]} Qh7 {[%emt 0:00:29]} 120. Rf4 {[%emt 0:00:18]} Qg7 {[%emt 0:00:25]} 121. Rf6 {[%emt 0:00:13]} Ke3 {[%emt 0:00:05]} 122. Rf4 {[%emt 0:00:16]} Qe7 {[%emt 0:00:24]} 123. Kg4 {[%emt 0:00:34]} Qb7 {[%emt 0:00:39]} 124. Kh3 {[%emt 0:01:31]} Qb8 {[%emt 0:00:44]} 125. Rf6 {[%emt 0:00:34]} Qb4 {[%emt 0:00:08]} 126. Rf7 {[%emt 0:00:11]} Qe4 {[%emt 0:00:39]} 127. Rf8 {[%emt 0:00:20]} Qc4 {[%emt 0:00:41]} 128. Rf6 {[%emt 0:00:12]} Qd3 {[%emt 0:00:37]} 129. Rf8 {[%emt 0:00:19]} Qc4 {[%emt 0:00:47]} 130. Rf6 {[%emt 0:00:07]} Qe4 {[%emt 0:00:17]} 131. Rf8 {[%emt 0:00:13]} Ke2 {[%emt 0:00:08]} 132. Rf6 {[%emt 0:00:14]} Kf1 {[%emt 0:00:22]} 133. Rf4 {[%emt 0:00:38]} Qb7 {[%emt 0:00:30]} 134. Rf8 {[%emt 0:00:16]} Kg1 {[%emt 0:00:18]} 135. Rf6 {[%emt 0:00:38]} Qe4 {[%emt 0:01:09]} 136. Rf8 {[%emt 0:00:15]} Kh1 {[%emt 0:00:26]} 137. Rf6 {[%emt 0:00:20]} f2 {[%emt 0:00:52]} 138. Rxf2 {[%emt 0:00:24]} Qg2+ {[%emt 0:00:08]} 139. Rxg2 {[%emt 0:00:10]} 1/2-1/2

[Event "Paracin Open 2022"]
[Site "Paracin"]
[Date "2022.07.13"]
[Round "6.11"]
[White "Jain Kashish Manoj"]
[Black "Aditya Mittal"]
[Result "1/2-1/2"]
[ECO "B90"]
[WhiteElo "2147"]
[BlackElo "2480"]
[Annotator "ChessBase"]
[PlyCount "112"]
[EventDate "2022.07.08"]
[EventCountry "SRB"]
[SourceTitle "playchess.com"]
[Source "ChessBase"]
[SourceQuality "1"]
[TimeControl "5400+30"]

1. e4 {[%emt 0:00:07]} c5 {[%emt 0:00:06]} 2. Nf3 {[%emt 0:00:10]} d6 {[%emt 0:00:02]} 3. d4 {[%emt 0:00:09]} cxd4 {[%emt 0:00:02]} 4. Nxd4 {[%emt 0:00:09]} Nf6 {[%emt 0:00:02]} 5. Nc3 {[%emt 0:00:09]} a6 {[%emt 0:00:02]} 6. a4 {[%emt 0:00:16]} e5 {[%emt 0:00:26]} 7. Nf3 {[%emt 0:00:08]} Be7 {[%emt 0:01:21]} 8. Bc4 {[%emt 0:00:13]} Be6 {[%emt 0:02:00]} 9. Qe2 {[%emt 0:00:34]} h6 {[%emt 0:05:47]} 10. O-O {[%emt 0:03:47]} Nbd7 {[%emt 0:04:41]} 11. Nh4 {[%emt 0:07:06]} Bxc4 {[%emt 0:19:42]} 12. Qxc4 {[%emt 0:00:10]} Rc8 {[%emt 0:00:04]} 13. Qe2 {[%emt 0:02:40]} g6 {[%emt 0:00:11]} 14. Rd1 {[%emt 0:03:24]} Qc7 {[%emt 0:02:23]} 15. Nf3 {[%emt 0:02:05]} Nc5 {[%emt 0:05:03]} 16. Ne1 {[%emt 0:13:44]} Ne6 {[%emt 0:02:46]} 17. Be3 {[%emt 0:00:21]} Qc4 {[%emt 0:02:20]} 18. Qxc4 {[%emt 0:03:26]} Rxc4 {[%emt 0:00:02]} 19. f3 {[%emt 0:00:09]} h5 {[%emt 0:04:14]} 20. a5 {[%emt 0:06:34]} g5 {[%emt 0:05:47]} 21. Na4 {[%emt 0:04:13]} g4 {[%emt 0:03:09]} 22. Nb6 {[%emt 0:00:13]} Rc7 {[%emt 0:02:14]} 23. c3 {[%emt 0:02:24]} Rg8 {[%emt 0:07:52]} 24. Kf2 {[%emt 0:02:24]} Nd7 {[%emt 0:06:21]} 25. Nd5 {[%emt 0:02:59]} Rc4 {[%emt 0:01:40]} 26. Nc2 {[%emt 0:08:33]} Bh4+ {[%emt 0:04:07]} 27. Kf1 {[%emt 0:00:18]} gxf3 {[%emt 0:02:22]} 28. gxf3 {[%emt 0:00:01]} f5 {[%emt 0:00:07]} 29. exf5 {[%emt 0:11:21]} Ng7 {[%emt 0:00:00]} 30. Ke2 {[%emt 0:05:18]} Nxf5 {[%emt 0:00:02]} 31. Rg1 {[%emt 0:00:08]} Rxg1 {[%emt 0:00:28]} 32. Bxg1 {[%emt 0:02:15]} Bd8 {[%emt 0:02:54]} 33. Bf2 {[%emt 0:03:13]} Kf7 {[%emt 0:01:10]} 34. Nde3 {[%emt 0:05:54]} Nxe3 {[%emt 0:00:16]} 35. Nxe3 {[%emt 0:00:13]} Rc6 {[%emt 0:01:10]} 36. Ng2 {[%emt 0:11:02]} Ke6 {[%emt 0:03:58]} 37. f4 {[%emt 0:00:24]} Nc5 {[%emt 0:03:44]} 38. fxe5 {[%emt 0:01:03]} dxe5 {[%emt 0:00:25]} 39. Ra3 {[%emt 0:01:38]} Ne4 {[%emt 0:00:01]} 40. Rb3 {[%emt 0:01:01]} Nd6 {[%emt 0:00:11]} 41. Rb4 {[%emt 0:00:24]} Kf7 {[%emt 0:04:57]} 42. Bg3 {[%emt 0:00:29]} Bxa5 {[%emt 0:02:34]} 43. Rh4 {[%emt 0:00:30]} Nc4 {[%emt 0:00:46]} 44. b3 {[%emt 0:00:37]} Nd6 {[%emt 0:00:09]} 45. Bxe5 {[%emt 0:00:30]} Bxc3 {[%emt 0:00:23]} 46. Rxh5 {[%emt 0:00:26]} Bxe5 {[%emt 0:02:09]} 47. Rxe5 {[%emt 0:00:02]} Rc2+ {[%emt 0:00:01]} 48. Kf1 {[%emt 0:00:54]} Nb5 {[%emt 0:01:16]} 49. Rd5 {[%emt 0:00:00]} Ke7 {[%emt 0:00:53]} 50. Rd3 {[%emt 0:00:13]} Rc3 {[%emt 0:02:09]} 51. Rxc3 {[%emt 0:00:35]} Nxc3 {[%emt 0:00:01]} 52. Ke1 {[%emt 0:00:01]} Ne4 {[%emt 0:00:27]} 53. Kd1 {[%emt 0:00:08]} Nc5 {[%emt 0:00:57]} 54. Kc2 {[%emt 0:00:05]} a5 {[%emt 0:00:10]} 55. Nf4 {[%emt 0:00:20]} b5 {[%emt 0:00:26]} 56. b4 {[%emt 0:00:14]} axb4 {[%emt 0:00:20]} 1/2-1/2